bitfinex-derivatives/quotes_BTCF0:USTF0_20251109
["timestamp","ask_amount","ask_price","bid_price","bid_amount"]
[1762719265367,0.08704,104630.0,104620.0,0.36143318]
[1762719266562,0.08704,104630.0,104620.0,0.21403318]
[1762719268669,0.15569495,104630.0,104620.0,0.21403318]
[1762719271169,0.15569495,104630.0,104620.0,0.00934149]
[1762719271473,0.60222924,104630.0,104620.0,0.00934149]
[1762719272668,0.60222924,104630.0,104620.0,0.15674149]
[1762719273271,0.53357429,104630.0,104620.0,0.15674149]
[1762719275367,0.60213612,104630.0,104620.0,0.15674149]
[1762719275968,0.60213612,104630.0,104620.0,0.16416149]
[1762719276273,0.51640183,104630.0,104620.0,0.16416149]
[1762719276775,0.60213612,104630.0,104620.0,0.16416149]
[1762719278479,0.60213612,104630.0,104620.0,0.01676149]
[1762719279268,0.60213612,104630.0,104620.0,0.01476149]
[1762719279469,0.51640183,104630.0,104620.0,0.01476149]
[1762719279668,0.60213612,104630.0,104620.0,0.01476149]
[1762719279971,0.60213612,104630.0,104620.0,0.01076149]
[1762719280567,0.51640183,104630.0,104620.0,0.09649578]
[1762719280968,0.51640183,104630.0,104620.0,0.19209338]
[1762719280969,0.15560183,104630.0,104620.0,0.19209338]
[1762719281769,0.15560183,104630.0,104620.0,0.10635909]
[1762719283372,0.15560183,104630.0,104620.0,0.01076149]
[1762719283669,0.51640183,104630.0,104620.0,0.01076149]
[1762719283874,0.15560183,104630.0,104620.0,0.01076149]
[1762719284179,0.15560183,104630.0,104620.0,0.09649578]
[1762719284370,0.15560183,104630.0,104620.0,0.33949338]
[1762719284675,0.08704,104630.0,104620.0,0.70029338]
[1762719284873,0.15560183,104630.0,104620.0,0.70029338]
[1762719287577,0.08704,104630.0,104620.0,0.70029338]
[1762719287976,0.15560183,104630.0,104620.0,0.70029338]
[1762719288170,0.15560183,104630.0,104620.0,0.60469578]
[1762719288570,0.15560183,104630.0,104620.0,0.24389578]
[1762719289373,0.15560183,104630.0,104620.0,0.15816149]
[1762719289580,0.08704,104630.0,104620.0,0.15816149]
[1762719289777,0.08704,104630.0,104620.0,0.70029338]
[1762719290583,0.08704,104630.0,104620.0,0.25375909]
[1762719290775,0.08704,104630.0,104620.0,0.33949338]
[1762719291680,0.08704,104630.0,104620.0,0.70029338]
[1762719291979,0.08704,104630.0,104620.0,0.33949338]
[1762719292177,0.08704,104630.0,104620.0,0.70029338]
[1762719292372,0.08704,104630.0,104620.0,0.33949338]
[1762719292572,0.08704,104630.0,104620.0,0.15816149]
[1762719293482,0.08704,104630.0,104620.0,0.25375909]
[1762719294066,0.08704,104630.0,104620.0,0.33949338]
[1762719294275,0.08704,104630.0,104620.0,0.70029338]
[1762719294874,0.08704,104630.0,104620.0,0.61455909]
[1762719295283,0.15560054,104630.0,104620.0,0.61455909]
[1762719296086,0.001,104630.0,104620.0,0.69077206]
[1762719296288,0.001,104630.0,104620.0,0.92973206]
[1762719296477,0.06955859,104630.0,104620.0,0.92973206]
[1762719296677,0.06955859,104630.0,104620.0,0.85351909]
[1762719296877,0.06955859,104630.0,104620.0,0.92973206]
[1762719297191,0.06955859,104630.0,104620.0,0.69077206]
[1762719297383,0.06955859,104630.0,104620.0,0.92973206]
[1762719298586,0.09857859,104630.0,104620.0,0.92973206]
[1762719299178,0.09857859,104630.0,104620.0,0.69077206]
[1762719299378,0.06955859,104630.0,104620.0,0.92973206]
[1762719299585,0.001,104630.0,104620.0,0.69077206]
[1762719300088,0.001,104630.0,104620.0,0.92973206]
[1762719302283,0.08118346,104650.0,104640.0,0.0955793]
[1762719302481,0.05278346,104650.0,104640.0,0.6821903]
[1762719302786,0.00014346,104650.0,104640.0,1.1345103]
[1762719303188,0.07345346,104650.0,104640.0,1.1345103]
[1762719303390,0.07345346,104650.0,104640.0,0.81937733]
[1762719303688,0.07645346,104650.0,104640.0,0.81937733]
[1762719304393,0.51146643,104650.0,104640.0,0.00219803]
[1762719304591,0.51146643,104650.0,104640.0,0.00519803]
[1762719304789,1.11146643,104650.0,104640.0,0.003]
[1762719305386,0.07331,104640.0,104630.0,0.1474]
[1762719305595,0.07331,104630.0,104620.0,0.45653696]
[1762719305896,0.07331,104630.0,104620.0,0.45873499]
[1762719306988,0.07431,104630.0,104620.0,0.36514149]
[1762719307192,0.43511,104630.0,104620.0,0.00434149]
[1762719307589,0.43511,104630.0,104620.0,0.00534149]
[1762719309093,0.43511,104630.0,104600.0,0.3608]
[1762719309094,0.07331,104610.0,104600.0,0.36678]
[1762719309295,0.07550803,104610.0,104600.0,0.36751267]
[1762719309785,0.43630803,104610.0,104600.0,0.00671267]
[1762719310096,0.07331,104590.0,104580.0,0.4624341]
[1762719310296,0.07550803,104590.0,104580.0,0.46316677]
[1762719310694,0.07550803,104590.0,104580.0,0.53937974]
[1762719311294,0.07650803,104590.0,104580.0,0.01073267]
[1762719311486,0.17213303,104590.0,104580.0,0.00473267]
[1762719311686,0.17213303,104590.0,104580.0,0.01073267]
[1762719311887,0.07650803,104590.0,104580.0,0.01073267]
[1762719312289,0.07650803,104590.0,104580.0,0.10636677]
[1762719312488,0.07650803,104590.0,104580.0,0.01073267]
[1762719313396,0.43730803,104590.0,104580.0,0.00473267]
[1762719313596,0.07650803,104590.0,104580.0,0.10636687]
[1762719313797,0.43730803,104590.0,104580.0,0.01073267]
[1762719315798,0.53293303,104590.0,104580.0,0.01073267]
[1762719315994,0.53293303,104590.0,104580.0,0.004]
[1762719316202,0.43730803,104590.0,104580.0,0.00473267]
[1762719316698,0.43730803,104590.0,104580.0,0.00873267]
[1762719316699,0.07650803,104590.0,104580.0,0.00873267]
[1762719316998,0.07650803,104590.0,104580.0,0.10436677]
[1762719317197,0.07650803,104590.0,104580.0,0.00573267]
[1762719317401,0.43730803,104590.0,104580.0,0.00573267]
[1762719318494,0.43730803,104590.0,104580.0,0.10136677]
[1762719318892,0.07650803,104590.0,104580.0,0.09836677]
[1762719320196,0.07650803,104590.0,104580.0,0.00273267]
[1762719320405,0.07650803,104590.0,104580.0,0.10436677]
[1762719320601,0.17213303,104590.0,104580.0,0.00273267]
[1762719321804,0.53293303,104590.0,104580.0,0.00273267]
[1762719322390,0.53293303,104590.0,104580.0,0.15013267]
[1762719323096,0.03826,104580.0,104570.0,0.00492472]
[1762719323402,0.477471,104580.0,104570.0,0.0025038]
[1762719323806,0.03826,104550.0,104540.0,0.07550274]
[1762719324005,0.116671,104550.0,104540.0,0.04688274]
[1762719324300,0.04045803,104550.0,104540.0,0.00337274]
[1762719324510,0.485411,104550.0,104540.0,0.00337274]
[1762719325005,0.54421959,104550.0,104540.0,0.00337274]
[1762719325406,0.54421959,104550.0,104530.0,0.00014346]
[1762719325407,0.1317607,104540.0,104530.0,0.00014346]
[1762719325699,0.50162178,104540.0,104530.0,0.00014346]
[1762719325904,0.04058108,104540.0,104530.0,0.16713336]
[1762719326806,0.04158108,104540.0,104530.0,0.17213336]
[1762719327008,0.05156066,104540.0,104530.0,0.17213336]
[1762719329003,0.02004066,104540.0,104530.0,0.53293336]
[1762719329201,0.00786305,104540.0,104530.0,0.53293336]
[1762719329402,0.00786305,104540.0,104530.0,1.13293336]
[1762719329810,0.00786305,104540.0,104530.0,1.37209336]
[1762719330202,0.00786305,104540.0,104530.0,1.26795492]
[1762719330509,0.00786305,104540.0,104530.0,1.13293336]
[1762719330707,0.00644652,104540.0,104530.0,1.37209336]
[1762719330908,0.00014346,104560.0,104550.0,0.1669716]
[1762719331110,0.00014346,104560.0,104550.0,0.8885716]
[1762719331609,0.00014346,104560.0,104550.0,1.1276916]
[1762719332019,0.00234149,104560.0,104550.0,0.79291]
[1762719332219,0.00334149,104560.0,104550.0,0.8895716]
[1762719332402,0.03020149,104560.0,104550.0,0.8895716]
[1762719332603,0.01322581,104560.0,104550.0,0.8895716]
[1762719333106,0.01102778,104560.0,104550.0,0.8895716]
[1762719333314,0.00114346,104560.0,104550.0,0.8895716]
[1762719334215,0.01094867,104560.0,104550.0,0.8895716]
[1762719334414,0.00114346,104560.0,104550.0,0.8895716]
[1762719335013,0.00334149,104560.0,104550.0,0.8895716]
[1762719336110,0.03020149,104560.0,104550.0,0.07231]
[1762719336302,0.01333386,104560.0,104550.0,0.5287716]
[1762719337409,0.0317349,104560.0,104550.0,0.5287716]
[1762719338320,0.0195445,104560.0,104550.0,0.90291316]
[1762719338514,0.0956343,104580.0,104570.0,0.0956433]
[1762719338817,0.09783233,104580.0,104570.0,0.3143533]
[1762719339005,0.00219803,104580.0,104570.0,0.3143533]
[1762719339212,0.00219803,104580.0,104570.0,0.5277533]
[1762719340420,0.00519803,104580.0,104570.0,0.5277533]
[1762719341122,0.01538636,104580.0,104570.0,0.5277533]
[1762719341314,0.01738636,104580.0,104570.0,0.5277533]
[1762719341518,0.00719803,104580.0,104570.0,0.5277533]
[1762719341718,0.005,104580.0,104570.0,0.5277533]
[1762719342522,0.00014346,104590.0,104580.0,0.1669445]
[1762719342723,0.00014346,104590.0,104580.0,0.5277445]
[1762719342926,0.15435679,104590.0,104580.0,0.07131]
[1762719343127,0.51515679,104590.0,104580.0,0.07131]
[1762719343325,0.52520443,104590.0,104580.0,0.07131]
[1762719343523,0.05639,104580.0,104570.0,0.07231]
[1762719343826,0.41938803,104580.0,104570.0,0.07131]
[1762719344518,0.42915803,104580.0,104570.0,0.05564]
[1762719344823,0.42038803,104580.0,104570.0,0.07131]
[1762719345023,0.1520336,104570.0,104560.0,0.43225346]
[1762719345226,0.15423163,104570.0,104560.0,0.07145346]
[1762719345723,0.51503163,104570.0,104560.0,0.07145346]
[1762719347220,0.41938803,104570.0,104560.0,0.07145346]
[1762719347423,0.51603163,104570.0,104560.0,0.07145346]
[1762719348116,0.51603163,104570.0,104560.0,0.00014346]
[1762719348425,0.51603163,104570.0,104560.0,0.02472346]
[1762719348623,0.51603163,104570.0,104560.0,0.05052346]
[1762719349219,0.51603163,104570.0,104560.0,0.06622346]
[1762719349520,0.42038803,104570.0,104560.0,0.16187626]
[1762719349726,0.05958803,104570.0,104560.0,0.16187626]
[1762719350518,0.15523173,104570.0,104560.0,0.06622346]
[1762719350926,0.51603173,104570.0,104560.0,0.06622346]
[1762719352122,0.42038803,104570.0,104560.0,0.16187626]
[1762719354726,0.51603163,104570.0,104560.0,0.16187626]
[1762719354928,0.15523163,104570.0,104560.0,0.16187626]
[1762719355428,0.15523163,104570.0,104560.0,0.06622346]
[1762719355829,0.05958803,104570.0,104560.0,0.16187626]
[1762719356031,0.05958803,104570.0,104560.0,0.06622346]
[1762719356526,0.42038803,104570.0,104560.0,0.06622346]
[1762719356722,0.05958803,104570.0,104560.0,0.16187626]
[1762719357221,0.42038803,104570.0,104560.0,0.16187626]
[1762719359632,0.05958803,104570.0,104560.0,0.16187626]
[1762719360019,0.05958803,104570.0,104560.0,0.52267626]
[1762719360427,0.05958803,104570.0,104560.0,0.67007626]
[1762719361330,0.51603163,104570.0,104560.0,0.30927626]
[1762719361729,0.42038803,104570.0,104560.0,0.30927626]
[1762719361926,0.05958803,104570.0,104560.0,0.30927626]
[1762719362134,0.05958803,104570.0,104560.0,0.67007626]
[1762719362433,0.15523163,104570.0,104560.0,0.67007626]
[1762719363022,0.05958803,104570.0,104560.0,0.67007626]
[1762719363226,0.15523163,104570.0,104560.0,0.67007626]
[1762719364931,0.05958803,104570.0,104560.0,0.67007626]
[1762719368231,0.05958803,104570.0,104560.0,0.57442346]
[1762719368232,0.15523593,104570.0,104560.0,0.57442346]
[1762719368437,0.51603593,104570.0,104560.0,0.21362346]
[1762719368832,0.60190218,104570.0,104560.0,0.21362346]
[1762719371539,0.42038803,104570.0,104560.0,0.30928056]
[1762719371744,0.60190228,104570.0,104560.0,0.21362346]
[1762719371938,0.60190228,104570.0,104560.0,0.00014346]
[1762719372737,1.20190228,104570.0,104560.0,0.00014346]
[1762719373045,1.20190228,104570.0,104540.0,0.01567]
[1762719373046,0.04937,104550.0,104540.0,0.06292]
[1762719373346,0.41236803,104550.0,104540.0,0.06292]
[1762719374246,0.41236803,104550.0,104540.0,0.1625954]
[1762719374547,0.00014346,104560.0,104550.0,0.1580663]
[1762719374746,0.02611149,104560.0,104550.0,0.5188663]
[1762719374947,0.05171149,104560.0,104550.0,0.1580663]
[1762719375339,0.41251149,104560.0,104550.0,0.0624]
[1762719376047,0.41351149,104560.0,104550.0,0.0624]
[1762719376447,0.41351149,104560.0,104550.0,0.0644]
[1762719378650,0.41351149,104560.0,104550.0,0.1600702]
[1762719379250,0.41351149,104560.0,104550.0,0.0644]
[1762719379547,0.50917249,104560.0,104550.0,0.0644]
[1762719379948,0.41351149,104560.0,104550.0,0.0644]
[1762719380249,0.41351149,104560.0,104550.0,0.1600702]
[1762719382351,0.05271149,104560.0,104550.0,0.1600702]
[1762719384048,0.02711149,104560.0,104550.0,0.5726]
[1762719384349,0.05271149,104560.0,104550.0,0.3074702]
[1762719385450,0.05271149,104560.0,104550.0,0.6682702]
[1762719385655,0.05271149,104560.0,104550.0,0.3074702]
[1762719385850,0.05271149,104560.0,104550.0,0.6682702]
[1762719386158,0.00334149,104560.0,104550.0,0.6682702]
[1762719388663,0.00114346,104560.0,104550.0,0.6682702]
[1762719392464,0.50710134,104590.0,104580.0,0.1543528]
[1762719392663,0.50929937,104590.0,104580.0,0.1543528]
[1762719392864,0.59511823,104590.0,104580.0,0.05871]
[1762719393258,0.50929937,104590.0,104580.0,0.1543528]
[1762719393658,0.37504567,104590.0,104580.0,0.24017166]
[1762719394165,0.37904567,104590.0,104580.0,0.1543528]
[1762719394466,0.37904567,104590.0,104580.0,0.24017166]
[1762719395066,0.01824567,104590.0,104580.0,0.24017166]
[1762719396861,0.01824567,104590.0,104580.0,0.60097166]
[1762719397260,0.00464346,104600.0,104590.0,0.1543436]
[1762719397463,0.00464346,104600.0,104590.0,0.24016246]
[1762719397863,0.00684149,104600.0,104590.0,0.24016246]
[1762719398463,0.00884149,104600.0,104590.0,0.24016246]
[1762719398665,0.00884149,104600.0,104590.0,0.1543436]
[1762719398666,0.00984149,104600.0,104590.0,0.1543436]
[1762719398867,0.11532952,104600.0,104590.0,0.24016246]
[1762719399068,0.13886952,104600.0,104590.0,0.1543436]
[1762719399369,0.60684838,104600.0,104590.0,0.05871]
[1762719399964,0.0449,104580.0,104570.0,0.03691346]
[1762719400166,0.58671575,104580.0,104570.0,0.00014346]
[1762719400470,0.94751575,104580.0,104570.0,0.00014346]
[1762719400863,0.86531914,104580.0,104570.0,0.00014346]
[1762719401064,0.86531914,104580.0,104570.0,0.00814346]
[1762719401264,0.76869803,104580.0,104570.0,0.06685346]
[1762719401465,0.76969803,104580.0,104570.0,0.06785346]
[1762719402367,0.87892083,104580.0,104570.0,0.00914346]
[1762719402873,0.76969803,104580.0,104570.0,0.15850536]
[1762719403171,0.72479803,104580.0,104570.0,0.15850536]
[1762719403361,0.00319803,104580.0,104570.0,0.51930536]
[1762719403567,0.04809803,104580.0,104570.0,0.51930536]
[1762719404876,0.00319803,104580.0,104570.0,0.51930536]
[1762719408380,0.40905803,104580.0,104570.0,0.15850536]
[1762719408883,0.50470083,104580.0,104570.0,0.15850536]
[1762719409367,0.40905803,104580.0,104570.0,0.15850536]
[1762719409572,0.02673803,104580.0,104570.0,0.51930536]
[1762719409872,0.00319803,104580.0,104570.0,0.51930536]
[1762719410376,0.02636803,104580.0,104570.0,0.30590536]
[1762719410775,0.12201083,104580.0,104570.0,0.30590536]
[1762719410975,0.50433083,104580.0,104570.0,0.30590536]
[1762719412180,0.40868803,104580.0,104570.0,0.30590536]
[1762719412975,0.50433093,104580.0,104570.0,0.30590536]
[1762719413282,0.02636803,104580.0,104570.0,0.66670536]
[1762719414479,0.00319803,104580.0,104570.0,0.66670536]
[1762719415082,0.02636803,104580.0,104570.0,0.66670536]
[1762719416084,0.02636803,104580.0,104570.0,0.30590536]
[1762719417486,0.04788803,104580.0,104570.0,0.30590536]
[1762719418279,0.02636803,104580.0,104570.0,0.15850536]
[1762719418481,0.00319803,104580.0,104570.0,0.15850536]
[1762719419187,0.02599803,104580.0,104570.0,0.15850536]
[1762719419780,0.02599803,104580.0,104570.0,0.51930536]
[1762719422890,0.04872803,104580.0,104570.0,0.51930536]
[1762719423588,0.14437093,104580.0,104570.0,0.15850536]
[1762719424787,0.50517093,104580.0,104570.0,0.15850536]
[1762719425090,0.38679803,104580.0,104570.0,0.15850536]
[1762719425291,0.00319803,104580.0,104570.0,0.15850536]
[1762719425791,0.00319803,104580.0,104570.0,0.59559594]
[1762719427286,0.50517073,104580.0,104570.0,0.15850536]
[1762719427893,0.50517073,104580.0,104570.0,0.30590536]
[1762719428591,0.40952803,104580.0,104570.0,0.30590536]
[1762719428998,0.40952803,104580.0,104570.0,0.15850536]
[1762719429596,0.00319803,104580.0,104570.0,0.51930536]
[1762719433498,0.00319803,104580.0,104570.0,0.59559594]
[1762719433800,0.00319803,104580.0,104570.0,0.51930536]
[1762719434200,0.04872803,104580.0,104570.0,0.51930536]
[1762719434800,0.14437083,104580.0,104570.0,0.51930536]
[1762719435404,0.04872803,104580.0,104570.0,0.51930536]
[1762719435806,0.14437083,104580.0,104570.0,0.51930536]
[1762719436106,0.04872803,104580.0,104570.0,0.51930536]
[1762719437002,0.02599803,104580.0,104570.0,0.51930536]
[1762719437206,0.00319803,104580.0,104570.0,0.51930536]
[1762719438103,0.3608,104590.0,104580.0,0.05981]
[1762719438303,0.01450699,104600.0,104590.0,0.1554437]
[1762719438506,0.01523966,104600.0,104590.0,0.15764173]
[1762719438807,0.01523966,104600.0,104590.0,0.51844173]
[1762719439303,0.01450699,104600.0,104590.0,0.51844173]
[1762719439508,0.01550699,104600.0,104590.0,0.23493231]
[1762719439701,0.01550699,104600.0,104590.0,0.59573231]
[1762719440507,0.01450699,104600.0,104590.0,0.59973231]
[1762719440711,0.4792121,104620.0,104610.0,0.1554254]
[1762719440900,0.4792121,104620.0,104610.0,0.15762343]
[1762719440901,0.00073267,104620.0,104610.0,0.15762343]
[1762719441107,0.00073267,104620.0,104610.0,0.51842343]
[1762719442509,0.01209111,104620.0,104610.0,0.51842343]
[1762719443213,0.01309111,104620.0,104610.0,0.52242343]
[1762719443413,0.01235844,104620.0,104610.0,0.65720113]
[1762719443622,0.00464346,104630.0,104620.0,0.1554163]
[1762719443923,0.00537613,104630.0,104620.0,0.15761433]
[1762719444218,0.00537613,104630.0,104620.0,0.51841433]
[1762719444919,0.01585728,104630.0,104620.0,0.51841433]
[1762719445420,0.01585728,104630.0,104620.0,0.51941433]
[1762719445716,0.01685728,104630.0,104620.0,0.52241433]
[1762719446111,0.00564346,104630.0,104620.0,0.52441433]
[1762719446318,0.00564346,104630.0,104620.0,0.52641433]
[1762719446720,3.46e-06,104630.0,104620.0,0.52641433]
[1762719447324,3.46e-06,104630.0,104620.0,0.66119203]
[1762719449420,3.46e-06,104630.0,104620.0,0.90015203]
[1762719450017,0.40503,104650.0,104640.0,0.1529281]
[1762719450220,0.02358267,104650.0,104640.0,0.15512613]
[1762719450929,0.00073267,104650.0,104640.0,0.15512613]
[1762719451223,0.04496267,104650.0,104640.0,0.15512613]
[1762719451720,0.05724751,104650.0,104640.0,0.15812613]
[1762719451921,0.43277751,104650.0,104640.0,0.06253803]
[1762719452226,0.43277751,104650.0,104640.0,0.04947803]
[1762719452623,0.43277751,104650.0,104640.0,0.14506613]
[1762719452821,0.43177751,104650.0,104640.0,0.15812613]
[1762719453021,0.43277751,104650.0,104640.0,0.15812613]
[1762719453728,0.41904751,104650.0,104640.0,0.15812613]
[1762719454721,0.41704751,104650.0,104640.0,0.15612613]
[1762719454927,0.41804751,104650.0,104640.0,0.16012613]
[1762719455128,0.43177751,104650.0,104640.0,0.16012613]
[1762719455327,0.43177751,104650.0,104640.0,0.05147803]
[1762719456630,0.43177751,104650.0,104640.0,0.14706613]
[1762719456826,0.43177751,104650.0,104640.0,0.05147803]
[1762719459227,0.43177751,104650.0,104640.0,0.14706613]
[1762719459427,0.43177751,104650.0,104640.0,0.05147803]
[1762719459836,0.43177751,104650.0,104640.0,0.14706613]
[1762719460338,0.43177751,104650.0,104640.0,0.05147803]
[1762719462338,0.39666751,104650.0,104640.0,0.16012613]
[1762719462840,0.41804751,104650.0,104640.0,0.16012613]
[1762719464438,0.05724751,104650.0,104640.0,0.16012613]
[1762719465442,3e-08,104660.0,104650.0,0.1529189]
[1762719465738,3e-08,104660.0,104650.0,0.59210734]
[1762719466225,0.42326,104690.0,104680.0,0.1169615]
[1762719466424,0.43477469,104690.0,104680.0,0.14202953]
[1762719467125,0.07397469,104690.0,104680.0,0.14202953]
[1762719467330,0.43477469,104690.0,104680.0,0.14202953]
[1762719467531,0.43777469,104690.0,104680.0,0.14302953]
[1762719467730,0.43877469,104690.0,104680.0,0.14302953]
[1762719468234,0.43677469,104690.0,104680.0,0.14402953]
[1762719469226,0.07597469,104690.0,104680.0,0.14402953]
[1762719469440,0.43677469,104690.0,104680.0,0.14402943]
[1762719469939,0.43677469,104690.0,104680.0,0.00419803]
[1762719471335,0.43677469,104690.0,104680.0,0.002]
[1762719472146,0.43677469,104690.0,104670.0,0.00014346]
[1762719472147,0.05749,104680.0,104670.0,0.00014346]
[1762719472333,0.41829,104680.0,104670.0,0.00234149]
[1762719473030,0.41829,104680.0,104670.0,0.02561149]
[1762719473236,0.41929,104680.0,104670.0,0.00534149]
[1762719473433,0.41929,104680.0,104670.0,0.00634149]
[1762719474234,0.41829,104680.0,104670.0,0.00334149]
[1762719474434,0.42029,104680.0,104670.0,0.00234149]
[1762719474741,0.41929,104680.0,104670.0,0.00234149]
[1762719474942,0.41929,104680.0,104670.0,0.00334149]
[1762719475442,0.41929,104680.0,104670.0,0.02661149]
[1762719476043,0.41929,104680.0,104670.0,0.00334149]
[1762719478039,0.41929,104680.0,104670.0,0.09890239]
[1762719478547,0.41929,104680.0,104670.0,0.00334149]
[1762719480841,0.41929,104680.0,104670.0,0.14319259]
[1762719483350,0.04484,104680.0,104670.0,0.15673259]
[1762719483739,0.05746,104680.0,104670.0,0.15673259]
[1762719484749,0.05746,104680.0,104670.0,0.14319259]
[1762719485251,0.41826,104680.0,104670.0,0.14319259]
[1762719486444,0.04484,104680.0,104670.0,0.15673259]
[1762719487155,0.05746,104680.0,104670.0,0.15673259]
[1762719488048,0.05746,104680.0,104670.0,0.14319259]
[1762719489050,0.41826,104680.0,104670.0,0.14319259]
[1762719490657,0.05746,104680.0,104670.0,0.14319259]
[1762719490858,0.05746,104680.0,104670.0,0.22885977]
[1762719492255,0.05746,104680.0,104670.0,0.24239977]
[1762719492256,0.04484,104680.0,104670.0,0.24239977]
[1762719493455,0.04484,104680.0,104670.0,0.60319977]
[1762719493754,0.001,104680.0,104670.0,0.68886695]
[1762719495055,0.02316,104680.0,104670.0,0.68886695]
[1762719495255,0.04435,104680.0,104670.0,0.68886695]
[1762719495457,0.001,104680.0,104670.0,0.68886695]
[1762719497559,0.01601469,104690.0,104680.0,0.1533821]
[1762719497761,0.41788,104710.0,104700.0,0.1398238]
[1762719498059,0.41788,104710.0,104700.0,0.22768901]
[1762719498656,0.50354718,104710.0,104700.0,0.04648803]
[1762719498958,0.41788,104710.0,104700.0,0.00419803]
[1762719499554,0.50354718,104710.0,104700.0,0.00419803]
[1762719500162,0.51600496,104710.0,104700.0,0.00419803]
[1762719500658,0.51600496,104710.0,104700.0,0.00519803]
[1762719500863,0.51600496,104710.0,104700.0,0.003]
[1762719501562,0.51600496,104710.0,104700.0,0.00519803]
[1762719504562,0.51600496,104710.0,104700.0,0.10073193]
[1762719506264,0.43033778,104710.0,104700.0,0.12229193]
[1762719506471,0.43033778,104710.0,104700.0,0.14378193]
[1762719506675,0.51600496,104710.0,104700.0,0.04824803]
[1762719507183,0.51600496,104710.0,104700.0,0.00519803]
[1762719509069,0.43033778,104710.0,104700.0,0.00519803]
[1762719509273,0.51600496,104710.0,104700.0,0.00519803]
[1762719509772,0.73757508,104710.0,104700.0,0.00519803]
[1762719511072,0.6519079,104710.0,104700.0,0.10073193]
[1762719511371,0.73757508,104710.0,104700.0,0.10073193]
[1762719511871,0.73757508,104710.0,104700.0,0.12352193]
[1762719513272,0.51600496,104710.0,104700.0,0.12352193]
[1762719515772,0.73757508,104710.0,104700.0,0.12352193]
[1762719516967,0.51600496,104710.0,104700.0,0.12352193]
[1762719517271,0.51600496,104710.0,104700.0,0.14501193]
[1762719519273,0.43033778,104710.0,104700.0,0.14501193]
[1762719519476,0.51600496,104710.0,104700.0,0.12352193]
[1762719519973,0.51600496,104710.0,104700.0,0.14501193]
[1762719521172,0.51600496,104710.0,104700.0,0.23067911]
[1762719521173,0.43033778,104710.0,104700.0,0.23067911]
[1762719521667,0.43033778,104710.0,104700.0,0.02798803]
[1762719521968,0.43033778,104710.0,104700.0,0.09086521]
[1762719522173,0.51600496,104710.0,104700.0,0.09086521]
[1762719524161,0.51600496,104710.0,104700.0,0.00519803]
[1762719524369,0.51600496,104710.0,104700.0,0.09086521]
[1762719524871,0.51600496,104710.0,104700.0,0.11365521]
[1762719525376,0.43033778,104710.0,104700.0,0.23067901]
[1762719526268,0.43033778,104710.0,104700.0,0.13514521]
[1762719527366,0.43033778,104710.0,104700.0,0.04947803]
[1762719527572,0.43033778,104710.0,104700.0,0.13514521]
[1762719528073,0.43033778,104710.0,104700.0,0.23067901]
[1762719528575,0.51600496,104710.0,104700.0,0.23067901]
[1762719528874,0.43033778,104710.0,104700.0,0.23067901]
[1762719533373,0.51600496,104710.0,104700.0,0.02798803]
[1762719533674,0.51600496,104710.0,104700.0,0.09086521]
[1762719533875,0.51600496,104710.0,104700.0,0.00519803]
[1762719534070,0.05922,104700.0,104690.0,0.00014346]
[1762719534270,0.50788521,104700.0,104690.0,0.00014346]
[1762719534874,0.50788521,104700.0,104690.0,0.00087613]
[1762719535273,0.50788521,104700.0,104690.0,0.00387613]
[1762719535475,0.42221803,104700.0,104690.0,0.00387613]
[1762719535675,0.42221803,104700.0,104690.0,0.22878631]
[1762719535879,0.42221803,104700.0,104690.0,0.13324331]
[1762719536074,0.42221803,104700.0,104690.0,0.00387613]
[1762719536380,0.42321803,104700.0,104690.0,0.00587613]
[1762719537281,0.50888521,104700.0,104690.0,0.00587613]
[1762719539382,0.42321803,104700.0,104690.0,0.00587613]
[1762719539583,0.50888521,104700.0,104690.0,0.00587613]
[1762719539784,0.50888521,104700.0,104690.0,0.02916613]
[1762719539984,0.50888521,104700.0,104690.0,0.14703923]
[1762719540380,0.50888521,104700.0,104690.0,0.02916613]
[1762719540579,0.42321803,104700.0,104690.0,0.00587613]
[1762719540781,0.50888521,104700.0,104690.0,0.02916613]
[1762719540980,0.50888521,104700.0,104690.0,0.05149613]
[1762719541285,0.50888521,104700.0,104690.0,0.00587613]
[1762719542386,0.50888521,104700.0,104670.0,0.02329]
[1762719542387,0.0136,104680.0,104670.0,0.02329]
[1762719542685,0.0578,104670.0,104660.0,0.04562]
[1762719542878,0.49698361,104670.0,104660.0,0.00073267]
[1762719543078,0.0578,104650.0,104640.0,0.1412035]
[1762719543288,0.04671045,104650.0,104640.0,0.15530617]
[1762719543779,0.04671045,104650.0,104640.0,0.04635267]
[1762719543780,0.40751045,104650.0,104640.0,0.04635267]
[1762719543981,0.48369603,104650.0,104640.0,0.04635267]
[1762719544183,0.48369603,104650.0,104640.0,0.00073267]
[1762719544388,0.40751045,104650.0,104640.0,0.00273267]
[1762719545187,0.05611,104640.0,104630.0,0.00492198]
[1762719545376,0.49529361,104640.0,104630.0,0.00492198]
[1762719545581,0.41910803,104640.0,104630.0,0.00492198]
[1762719546090,0.41910803,104640.0,104630.0,0.05054198]
[1762719546285,0.41910803,104640.0,104630.0,0.00492198]
[1762719546491,0.42010803,104640.0,104630.0,0.00992198]
[1762719548686,0.49629361,104640.0,104630.0,0.00992198]
[1762719549194,0.49129361,104640.0,104630.0,0.00992198]
[1762719549893,0.49129361,104640.0,104630.0,1.98e-06]
[1762719550785,0.05649,104620.0,104610.0,9.461e-05]
[1762719551096,0.0442,104610.0,104600.0,0.15953845]
[1762719551285,0.01195006,104610.0,104600.0,0.52033845]
[1762719551486,0.00219803,104610.0,104600.0,0.52033845]
[1762719551690,0.00219803,104610.0,104600.0,0.59652403]
[1762719552195,0.00554803,104610.0,104600.0,0.59652403]
[1762719552392,0.00889803,104610.0,104600.0,0.59652403]
[1762719552588,0.00889803,104610.0,104600.0,0.60152403]
[1762719552790,0.00989803,104610.0,104600.0,0.07691335]
[1762719552984,0.37069803,104610.0,104600.0,0.07691335]
[1762719553187,0.36969803,104610.0,104600.0,0.07191335]
[1762719553496,0.46631393,104610.0,104600.0,0.06591335]
[1762719553693,0.47972269,104610.0,104600.0,0.06591335]
[1762719553891,0.55590827,104610.0,104600.0,0.02029335]
[1762719554196,0.55590827,104610.0,104600.0,0.00692335]
[1762719554589,0.0067,104600.0,104590.0,0.01337]
[1762719554790,0.0067,104590.0,104580.0,0.05899]
[1762719554997,0.36969803,104590.0,104580.0,0.05899]
[1762719555295,0.36969803,104590.0,104580.0,0.1546334]
[1762719556090,0.37069803,104590.0,104580.0,0.1566334]
[1762719556395,0.37069803,104590.0,104580.0,0.1606334]
[1762719556589,0.37069803,104590.0,104580.0,0.06499]
[1762719556794,0.44688361,104590.0,104580.0,0.04266]
[1762719557096,0.44688361,104590.0,104580.0,0.006]
[1762719557289,0.37069803,104590.0,104580.0,0.006]
[1762719557886,0.37069803,104590.0,104580.0,0.1383034]
[1762719558092,0.37069803,104590.0,104580.0,0.1606334]
[1762719559295,0.54251781,104590.0,104580.0,0.006]